[Event "December 12 Early 2023"]
[Site "https://www.chess.com"]
[Date "2023.12.12"]
[Round "5"]
[White "Grutter, Tim"]
[Black "Javakhadze, Zurab"]
[Result "1-0"]
[Board "80"]
[TimeControl "180+1"]
[WhiteFideId "1057472"]
[BlackFideId "13603647"]
[WhiteElo "2507"]
[BlackElo "2768"]
[WhiteTeam "NED"]
[BlackTeam "GEO"]
[WhiteClock "0:00:03"]
[BlackClock "0:00:00"]

1. e4 {[%clk 0:03:00]}  c5 {[%clk 0:02:58]} 2. Nc3 {[%clk 0:03:01]}  Nc6 {[%clk 0:02:58]} 3. g3 {[%clk 0:03:01]}  d6 {[%clk 0:02:59]} 4. Bg2 {[%clk 0:03:01]}  g6 {[%clk 0:02:59]} 5. Nge2 {[%clk 0:03:01]}  Bg7 {[%clk 0:03:00]} 6. O-O {[%clk 0:03:01]}  Nf6 {[%clk 0:02:59]} 7. d4 {[%clk 0:02:59]}  cxd4 {[%clk 0:02:59]} 8. Nxd4 {[%clk 0:02:59]}  Nxd4 {[%clk 0:02:59]} 9. Qxd4 {[%clk 0:02:59]}  O-O {[%clk 0:03:00]} 10. h3 {[%clk 0:02:50]}  Be6 {[%clk 0:02:56]} 11. Qd1 {[%clk 0:02:46]}  Nd7 {[%clk 0:02:40]} 12. Be3 {[%clk 0:02:44]}  Ne5 {[%clk 0:02:34]} 13. Bd4 {[%clk 0:02:39]}  Qc8 {[%clk 0:02:29]} 14. Kh2 {[%clk 0:02:37]}  Qc4 {[%clk 0:02:17]} 15. Ne2 {[%clk 0:02:18]}  Rac8 {[%clk 0:01:58]} 16. c3 {[%clk 0:02:17]}  Qb5 {[%clk 0:01:57]} 17. b3 {[%clk 0:02:12]}  Qd3 {[%clk 0:01:23]} 18. Qxd3 {[%clk 0:01:53]}  Nxd3 {[%clk 0:01:20]} 19. c4 {[%clk 0:01:36]}  a6 {[%clk 0:01:15]} 20. Rfd1 {[%clk 0:01:10]}  Nc5 {[%clk 0:00:46]} 21. Bxg7 {[%clk 0:01:07]}  Kxg7 {[%clk 0:00:46]} 22. Nd4 {[%clk 0:00:59]}  Bd7 {[%clk 0:00:45]} 23. Rac1 {[%clk 0:00:29]}  b5 {[%clk 0:00:38]} 24. f3 {[%clk 0:00:29]}  b4 {[%clk 0:00:21]} 25. f4 {[%clk 0:00:23]}  a5 {[%clk 0:00:19]} 26. e5 {[%clk 0:00:22]}  dxe5 {[%clk 0:00:20]} 27. fxe5 {[%clk 0:00:23]}  Rfd8 {[%clk 0:00:17]} 28. Rd2 {[%clk 0:00:14]}  Be8 {[%clk 0:00:08]} 29. Rcd1 {[%clk 0:00:13]}  Kg8 {[%clk 0:00:08]} 30. Bd5 {[%clk 0:00:08]}  a4 {[%clk 0:00:07]} 31. e6 {[%clk 0:00:06]}  f6 {[%clk 0:00:05]} 32. bxa4 {[%clk 0:00:04]}  Bxa4 {[%clk 0:00:05]} 33. Rb1 {[%clk 0:00:03]}  Rb8 {[%clk 0:00:04]} 34. Rdb2 {[%clk 0:00:02]}  Nd3 {[%clk 0:00:04]} 35. Rd2 {[%clk 0:00:03]}  Ne5 {[%clk 0:00:00]} 36. Rdb2 {[%clk 0:00:03]} 1-0

[Event "December 12 Early 2023"]
[Site "https://www.chess.com"]
[Date "2023.12.12"]
[Round "5"]
[White "Haug, Havard"]
[Black "Dinu, Dumitru-Daniel"]
[Result "1-0"]
[Board "81"]
[TimeControl "180+1"]
[WhiteFideId "1547887"]
[BlackFideId "1208403"]
[WhiteElo "2743"]
[BlackElo "2505"]
[WhiteTeam "NOR"]
[BlackTeam "ROU"]
[WhiteClock "0:01:12"]
[BlackClock "0:00:10"]

1. e4 {[%clk 0:03:00]}  c5 {[%clk 0:02:58]} 2. c3 {[%clk 0:03:00]}  Nf6 {[%clk 0:02:55]} 3. e5 {[%clk 0:03:00]}  Nd5 {[%clk 0:02:55]} 4. Nf3 {[%clk 0:03:01]}  e6 {[%clk 0:02:54]} 5. d4 {[%clk 0:03:00]}  cxd4 {[%clk 0:02:54]} 6. cxd4 {[%clk 0:03:01]}  Nc6 {[%clk 0:02:55]} 7. Bc4 {[%clk 0:03:01]}  d6 {[%clk 0:02:54]} 8. Qe2 {[%clk 0:03:01]}  dxe5 {[%clk 0:02:47]} 9. dxe5 {[%clk 0:02:59]}  Bb4+ {[%clk 0:02:38]} 10. Bd2 {[%clk 0:02:59]}  Bxd2+ {[%clk 0:02:37]} 11. Nbxd2 {[%clk 0:02:58]}  Nb6 {[%clk 0:02:37]} 12. O-O {[%clk 0:02:57]}  O-O {[%clk 0:02:30]} 13. Bb3 {[%clk 0:02:56]}  Nd4 {[%clk 0:02:26]} 14. Nxd4 {[%clk 0:02:55]}  Qxd4 {[%clk 0:02:25]} 15. Nf3 {[%clk 0:02:55]}  Qb4 {[%clk 0:02:18]} 16. Rfd1 {[%clk 0:02:42]}  Bd7 {[%clk 0:02:17]} 17. Rd4 {[%clk 0:02:42]}  Qc5 {[%clk 0:02:10]} 18. Rg4 {[%clk 0:02:33]}  Rac8 {[%clk 0:02:03]} 19. Qd2 {[%clk 0:02:29]}  Qe7 {[%clk 0:01:35]} 20. Qh6 {[%clk 0:02:01]}  f6 {[%clk 0:01:29]} 21. Qh5 {[%clk 0:01:50]}  f5 {[%clk 0:01:20]} 22. Rg3 {[%clk 0:01:37]}  g6 {[%clk 0:00:53]} 23. Qh6 {[%clk 0:01:32]}  Ba4 {[%clk 0:00:50]} 24. Ng5 {[%clk 0:01:24]}  Bxb3 {[%clk 0:00:48]} 25. axb3 {[%clk 0:01:20]}  a6 {[%clk 0:00:38]} 26. Nxh7 {[%clk 0:01:14]}  Qxh7 {[%clk 0:00:28]} 27. Rxg6+ {[%clk 0:01:14]}  Kh8 {[%clk 0:00:28]} 28. Qg5 {[%clk 0:01:15]}  Rf7 {[%clk 0:00:11]} 29. Rh6 {[%clk 0:01:15]}  Rg8 {[%clk 0:00:11]} 30. Rxh7+ {[%clk 0:01:14]}  Rxh7 {[%clk 0:00:10]} 31. Qf6+ {[%clk 0:01:14]}  Rhg7 {[%clk 0:00:11]} 32. g3 {[%clk 0:01:11]}  Nd5 {[%clk 0:00:11]} 33. Qxe6 {[%clk 0:01:11]}  Ne7 {[%clk 0:00:10]} 34. Rd1 {[%clk 0:01:10]}  Kh7 {[%clk 0:00:08]} 35. Rd7 {[%clk 0:01:09]}  Ng6 {[%clk 0:00:09]} 36. Rxg7+ {[%clk 0:01:10]}  Rxg7 {[%clk 0:00:10]} 37. Qxf5 {[%clk 0:01:10]}  Re7 {[%clk 0:00:10]} 38. e6 {[%clk 0:01:10]}  Kg7 {[%clk 0:00:11]} 39. h4 {[%clk 0:01:11]}  Nf8 {[%clk 0:00:11]} 40. Qg5+ {[%clk 0:01:11]}  Ng6 {[%clk 0:00:12]} 41. h5 {[%clk 0:01:12]}  Rxe6 {[%clk 0:00:10]} 42. hxg6 {[%clk 0:01:12]} 1-0

[Event "December 12 Early 2023"]
[Site "https://www.chess.com"]
[Date "2023.12.12"]
[Round "5"]
[White "Reprintsev, Alexander"]
[Black "Wu, Derek"]
[Result "1-0"]
[Board "84"]
[TimeControl "180+1"]
[WhiteFideId "14100541"]
[BlackFideId "30914558"]
[WhiteElo "2497"]
[BlackElo "2704"]
[WhiteTeam "UKR"]
[BlackTeam "USA"]
[WhiteClock "0:00:19"]
[BlackClock "0:00:00"]

1. e4 {[%clk 0:02:57]}  c5 {[%clk 0:02:59]} 2. b3 {[%clk 0:02:57]}  e5 {[%clk 0:02:58]} 3. Bb2 {[%clk 0:02:57]}  d6 {[%clk 0:02:57]} 4. f4 {[%clk 0:02:56]}  exf4 {[%clk 0:02:49]} 5. Qf3 {[%clk 0:02:56]}  Nc6 {[%clk 0:02:35]} 6. Qxf4 {[%clk 0:02:53]}  Nge7 {[%clk 0:02:25]} 7. Nf3 {[%clk 0:02:43]}  Ng6 {[%clk 0:02:24]} 8. Qg3 {[%clk 0:02:41]}  h5 {[%clk 0:02:18]} 9. Bb5 {[%clk 0:02:37]}  h4 {[%clk 0:02:17]} 10. Qf2 {[%clk 0:02:35]}  Qb6 {[%clk 0:02:11]} 11. Na3 {[%clk 0:02:34]}  f6 {[%clk 0:01:42]} 12. O-O-O {[%clk 0:02:30]}  Be6 {[%clk 0:01:29]} 13. d4 {[%clk 0:02:28]}  cxd4 {[%clk 0:01:26]} 14. Nxd4 {[%clk 0:02:14]}  Ne5 {[%clk 0:01:18]} 15. Rhf1 {[%clk 0:01:55]}  Bg4 {[%clk 0:01:17]} 16. Nxc6 {[%clk 0:01:26]}  Nxc6 {[%clk 0:01:07]} 17. Qxb6 {[%clk 0:01:23]}  axb6 {[%clk 0:01:08]} 18. Rde1 {[%clk 0:01:18]}  O-O-O {[%clk 0:01:01]} 19. Nc4 {[%clk 0:01:17]}  Kc7 {[%clk 0:01:00]} 20. a4 {[%clk 0:01:16]}  d5 {[%clk 0:00:53]} 21. Ne3 {[%clk 0:01:14]}  Be6 {[%clk 0:00:50]} 22. exd5 {[%clk 0:01:13]}  Bxd5 {[%clk 0:00:50]} 23. Nxd5+ {[%clk 0:01:13]}  Rxd5 {[%clk 0:00:51]} 24. Re8 {[%clk 0:01:11]}  Rd8 {[%clk 0:00:48]} 25. Rxd8 {[%clk 0:01:11]}  Nxd8 {[%clk 0:00:42]} 26. Rd1 {[%clk 0:01:03]}  Bd6 {[%clk 0:00:42]} 27. h3 {[%clk 0:00:57]}  Rh5 {[%clk 0:00:39]} 28. Bd4 {[%clk 0:00:56]}  Nf7 {[%clk 0:00:28]} 29. Be8 {[%clk 0:00:54]}  Bf4+ {[%clk 0:00:15]} 30. Kb1 {[%clk 0:00:53]}  Rg5 {[%clk 0:00:13]} 31. Bxf7 {[%clk 0:00:52]}  Rxg2 {[%clk 0:00:13]} 32. Be6 {[%clk 0:00:48]}  Rg3 {[%clk 0:00:07]} 33. Bf2 {[%clk 0:00:39]}  Rg2 {[%clk 0:00:04]} 34. Bxh4 {[%clk 0:00:36]}  Be5 {[%clk 0:00:05]} 35. Rd7+ {[%clk 0:00:22]}  Kc6 {[%clk 0:00:05]} 36. Bd5+ {[%clk 0:00:22]}  Kxd7 {[%clk 0:00:05]} 37. Bxg2 {[%clk 0:00:22]}  Kc7 {[%clk 0:00:05]} 38. c4 {[%clk 0:00:20]}  g5 {[%clk 0:00:05]} 39. Bf2 {[%clk 0:00:19]}  f5 {[%clk 0:00:05]} 40. Kc2 {[%clk 0:00:19]}  g4 {[%clk 0:00:05]} 41. hxg4 {[%clk 0:00:19]}  fxg4 {[%clk 0:00:06]} 42. Kd3 {[%clk 0:00:19]}  Bd6 {[%clk 0:00:05]} 43. Bd4 {[%clk 0:00:19]}  g3 {[%clk 0:00:04]} 44. Ke4 {[%clk 0:00:19]}  Bb4 {[%clk 0:00:01]} 45. Be5+ {[%clk 0:00:19]}  Kc8 {[%clk 0:00:00]} 46. Bxg3 {[%clk 0:00:19]} 1-0

[Event "December 12 Early 2023"]
[Site "https://www.chess.com"]
[Date "2023.12.12"]
[Round "5"]
[White "Berezin, Viktor"]
[Black "Souleidis, Georgios"]
[Result "1-0"]
[Board "89"]
[TimeControl "180+1"]
[WhiteFideId "14107872"]
[BlackFideId "4206827"]
[WhiteElo "2489"]
[BlackElo "2644"]
[WhiteTeam "UKR"]
[BlackTeam "GRE"]
[WhiteClock "0:00:08"]
[BlackClock "0:00:00"]

1. d4 {[%clk 0:02:55]}  Nf6 {[%clk 0:02:59]} 2. Nf3 {[%clk 0:02:53]}  g6 {[%clk 0:02:59]} 3. g3 {[%clk 0:02:52]}  Bg7 {[%clk 0:03:00]} 4. Bg2 {[%clk 0:02:53]}  O-O {[%clk 0:03:01]} 5. O-O {[%clk 0:02:54]}  d6 {[%clk 0:03:01]} 6. a4 {[%clk 0:02:54]}  a5 {[%clk 0:02:58]} 7. Nc3 {[%clk 0:02:54]}  d5 {[%clk 0:02:55]} 8. Ne5 {[%clk 0:02:53]}  c6 {[%clk 0:02:52]} 9. e4 {[%clk 0:02:44]}  dxe4 {[%clk 0:02:52]} 10. Nxe4 {[%clk 0:02:45]}  Nxe4 {[%clk 0:02:52]} 11. Bxe4 {[%clk 0:02:46]}  Bh3 {[%clk 0:02:52]} 12. Re1 {[%clk 0:02:43]}  Nd7 {[%clk 0:02:53]} 13. Bf4 {[%clk 0:02:32]}  Nxe5 {[%clk 0:02:44]} 14. dxe5 {[%clk 0:02:24]}  Qb6 {[%clk 0:02:38]} 15. b3 {[%clk 0:02:18]}  Rfd8 {[%clk 0:02:32]} 16. Qe2 {[%clk 0:02:18]}  Be6 {[%clk 0:02:30]} 17. Rad1 {[%clk 0:02:14]}  Qc5 {[%clk 0:02:25]} 18. Bd3 {[%clk 0:02:11]}  h5 {[%clk 0:02:19]} 19. Qf1 {[%clk 0:02:01]}  Bg4 {[%clk 0:02:10]} 20. Rd2 {[%clk 0:02:00]}  Rd5 {[%clk 0:01:58]} 21. e6 {[%clk 0:01:39]}  Bxe6 {[%clk 0:01:36]} 22. Rde2 {[%clk 0:01:21]}  g5 {[%clk 0:01:14]} 23. Be3 {[%clk 0:01:07]}  Qc3 {[%clk 0:00:41]} 24. Bc4 {[%clk 0:01:07]}  Re5 {[%clk 0:00:41]} 25. Bd2 {[%clk 0:01:01]}  Qd4 {[%clk 0:00:41]} 26. Bxe6 {[%clk 0:00:51]}  Rxe6 {[%clk 0:00:32]} 27. Rxe6 {[%clk 0:00:43]}  fxe6 {[%clk 0:00:33]} 28. Bxg5 {[%clk 0:00:39]}  Kf7 {[%clk 0:00:30]} 29. Be3 {[%clk 0:00:33]}  Qg4 {[%clk 0:00:27]} 30. h3 {[%clk 0:00:29]}  Qf5 {[%clk 0:00:27]} 31. Kh2 {[%clk 0:00:28]}  Rd8 {[%clk 0:00:20]} 32. Qe2 {[%clk 0:00:28]}  Bf6 {[%clk 0:00:14]} 33. Rd1 {[%clk 0:00:27]}  Rd5 {[%clk 0:00:14]} 34. Rxd5 {[%clk 0:00:21]}  exd5 {[%clk 0:00:15]} 35. Bb6 {[%clk 0:00:19]}  d4 {[%clk 0:00:10]} 36. Qc4+ {[%clk 0:00:19]}  Kg6 {[%clk 0:00:08]} 37. Bxd4 {[%clk 0:00:15]}  Bxd4 {[%clk 0:00:09]} 38. Qxd4 {[%clk 0:00:16]}  Qxc2 {[%clk 0:00:10]} 39. Qe3 {[%clk 0:00:14]}  Kf6 {[%clk 0:00:07]} 40. g4 {[%clk 0:00:14]}  hxg4 {[%clk 0:00:07]} 41. hxg4 {[%clk 0:00:14]}  Qh7+ {[%clk 0:00:07]} 42. Kg3 {[%clk 0:00:15]}  Qg6 {[%clk 0:00:06]} 43. Qd4+ {[%clk 0:00:13]}  Kf7 {[%clk 0:00:06]} 44. Qc4+ {[%clk 0:00:13]}  Qe6 {[%clk 0:00:06]} 45. Qf4+ {[%clk 0:00:13]}  Kg7 {[%clk 0:00:05]} 46. Qd4+ {[%clk 0:00:12]}  Kf7 {[%clk 0:00:05]} 47. Qc3 {[%clk 0:00:08]}  Qe5+ {[%clk 0:00:00]} 48. Qxe5 {[%clk 0:00:08]} 1-0

[Event "December 12 Early 2023"]
[Site "https://www.chess.com"]
[Date "2023.12.12"]
[Round "5"]
[White "Koellner, Ruben Gideon"]
[Black "Dann, Matthias"]
[Result "1-0"]
[Board "90"]
[TimeControl "180+1"]
[WhiteFideId "12993093"]
[BlackFideId "24638056"]
[WhiteElo "2642"]
[BlackElo "2478"]
[WhiteTeam "GER"]
[BlackTeam "GER"]
[WhiteClock "0:01:53"]
[BlackClock "0:00:00"]

1. d4 {[%clk 0:03:00]}  Nf6 {[%clk 0:02:59]} 2. Nf3 {[%clk 0:03:01]}  d5 {[%clk 0:02:59]} 3. e3 {[%clk 0:03:01]}  e6 {[%clk 0:02:58]} 4. Nbd2 {[%clk 0:03:01]}  Bd6 {[%clk 0:02:58]} 5. Bd3 {[%clk 0:03:01]}  O-O {[%clk 0:02:58]} 6. O-O {[%clk 0:03:01]}  b6 {[%clk 0:02:57]} 7. Ne5 {[%clk 0:03:01]}  c5 {[%clk 0:02:51]} 8. f4 {[%clk 0:03:00]}  Ba6 {[%clk 0:02:50]} 9. Qf3 {[%clk 0:03:00]}  Bxd3 {[%clk 0:02:49]} 10. cxd3 {[%clk 0:03:00]}  cxd4 {[%clk 0:02:48]} 11. exd4 {[%clk 0:03:01]}  Qc7 {[%clk 0:02:31]} 12. g4 {[%clk 0:02:58]}  Nc6 {[%clk 0:02:30]} 13. Qf2 {[%clk 0:02:45]}  Bxe5 {[%clk 0:02:23]} 14. fxe5 {[%clk 0:02:45]}  Nxg4 {[%clk 0:02:24]} 15. Qg3 {[%clk 0:02:38]}  f5 {[%clk 0:02:24]} 16. Nf3 {[%clk 0:02:34]}  Kh8 {[%clk 0:02:08]} 17. Qh4 {[%clk 0:02:32]}  Nh6 {[%clk 0:01:52]} 18. Bxh6 {[%clk 0:02:31]}  gxh6 {[%clk 0:01:52]} 19. Rac1 {[%clk 0:02:32]}  Rg8+ {[%clk 0:01:40]} 20. Kh1 {[%clk 0:02:32]}  Rg6 {[%clk 0:01:41]} 21. Rf2 {[%clk 0:02:26]}  Qd7 {[%clk 0:01:08]} 22. Rfc2 {[%clk 0:02:26]}  Nb4 {[%clk 0:01:01]} 23. Rc7 {[%clk 0:02:24]}  Qe8 {[%clk 0:00:47]} 24. Re7 {[%clk 0:02:23]}  Qg8 {[%clk 0:00:42]} 25. Rcc7 {[%clk 0:02:22]}  Nxd3 {[%clk 0:00:40]} 26. h3 {[%clk 0:02:14]}  Re8 {[%clk 0:00:26]} 27. Red7 {[%clk 0:02:09]}  b5 {[%clk 0:00:02]} 28. Rxa7 {[%clk 0:02:08]}  b4 {[%clk 0:00:02]} 29. a4 {[%clk 0:02:07]}  Rc8 {[%clk 0:00:02]} 30. Rac7 {[%clk 0:01:56]}  Rxc7 {[%clk 0:00:03]} 31. Rxc7 {[%clk 0:01:57]}  Rg7 {[%clk 0:00:03]} 32. Qf6 {[%clk 0:01:55]}  Nf2+ {[%clk 0:00:04]} 33. Kh2 {[%clk 0:01:54]}  Ne4 {[%clk 0:00:05]} 34. Qxg7+ {[%clk 0:01:53]}  Qxg7 {[%clk 0:00:05]} 35. Rxg7 {[%clk 0:01:54]}  Kxg7 {[%clk 0:00:06]} 36. a5 {[%clk 0:01:54]}  Nc3 {[%clk 0:00:00]} 37. bxc3 {[%clk 0:01:53]} 1-0

[Event "December 12 Early 2023"]
[Site "https://www.chess.com"]
[Date "2023.12.12"]
[Round "5"]
[White "Mestnikov, Aisen"]
[Black "Boyer, Mahel"]
[Result "0-1"]
[Board "91"]
[TimeControl "180+1"]
[WhiteFideId "34130117"]
[BlackFideId "45102422"]
[WhiteElo "2476"]
[BlackElo "2636"]
[WhiteTeam "RUS"]
[BlackTeam "FRA"]
[WhiteClock "0:00:15"]
[BlackClock "0:00:09"]

1. d4 {[%clk 0:02:54]}  Nf6 {[%clk 0:02:53]} 2. c4 {[%clk 0:02:55]}  e6 {[%clk 0:02:52]} 3. Nf3 {[%clk 0:02:55]}  c5 {[%clk 0:02:51]} 4. d5 {[%clk 0:02:54]}  d6 {[%clk 0:02:51]} 5. Nc3 {[%clk 0:02:54]}  exd5 {[%clk 0:02:51]} 6. cxd5 {[%clk 0:02:55]}  g6 {[%clk 0:02:51]} 7. e4 {[%clk 0:02:55]}  Bg7 {[%clk 0:02:51]} 8. Be2 {[%clk 0:02:55]}  Bg4 {[%clk 0:02:47]} 9. h3 {[%clk 0:02:55]}  Bxf3 {[%clk 0:02:47]} 10. Bxf3 {[%clk 0:02:56]}  O-O {[%clk 0:02:47]} 11. O-O {[%clk 0:02:57]}  Na6 {[%clk 0:02:41]} 12. Bf4 {[%clk 0:02:54]}  Re8 {[%clk 0:02:29]} 13. Re1 {[%clk 0:02:49]}  Nd7 {[%clk 0:01:14]} 14. Bxd6 {[%clk 0:02:40]}  Qb6 {[%clk 0:01:12]} 15. e5 {[%clk 0:01:42]}  Nxe5 {[%clk 0:01:03]} 16. Bxe5 {[%clk 0:01:40]}  Bxe5 {[%clk 0:01:03]} 17. Qb3 {[%clk 0:01:37]}  Qxb3 {[%clk 0:00:44]} 18. axb3 {[%clk 0:01:37]}  Nb4 {[%clk 0:00:45]} 19. Re2 {[%clk 0:01:15]}  a6 {[%clk 0:00:30]} 20. Rae1 {[%clk 0:01:12]}  Nd3 {[%clk 0:00:30]} 21. Rb1 {[%clk 0:00:55]}  Rad8 {[%clk 0:00:23]} 22. Re3 {[%clk 0:00:44]}  Nb4 {[%clk 0:00:07]} 23. Rd1 {[%clk 0:00:39]}  Nc2 {[%clk 0:00:04]} 24. Re4 {[%clk 0:00:29]}  Nd4 {[%clk 0:00:02]} 25. Na4 {[%clk 0:00:17]}  Nxb3 {[%clk 0:00:01]} 26. Re3 {[%clk 0:00:09]}  b5 {[%clk 0:00:01]} 27. Rxb3 {[%clk 0:00:09]}  bxa4 {[%clk 0:00:02]} 28. Rb7 {[%clk 0:00:09]}  Bd6 {[%clk 0:00:02]} 29. Rb6 {[%clk 0:00:09]}  Re7 {[%clk 0:00:01]} 30. Rxa6 {[%clk 0:00:09]}  Rb7 {[%clk 0:00:02]} 31. Rxa4 {[%clk 0:00:09]}  Rxb2 {[%clk 0:00:02]} 32. Re4 {[%clk 0:00:09]}  Kg7 {[%clk 0:00:02]} 33. Rde1 {[%clk 0:00:08]}  Ra8 {[%clk 0:00:03]} 34. g3 {[%clk 0:00:08]}  Raa2 {[%clk 0:00:03]} 35. R4e2 {[%clk 0:00:08]}  c4 {[%clk 0:00:03]} 36. Rxb2 {[%clk 0:00:07]}  Rxb2 {[%clk 0:00:04]} 37. Rc1 {[%clk 0:00:07]}  Bc5 {[%clk 0:00:03]} 38. Rxc4 {[%clk 0:00:07]}  Bxf2+ {[%clk 0:00:03]} 39. Kf1 {[%clk 0:00:07]}  Bxg3 {[%clk 0:00:04]} 40. Be2 {[%clk 0:00:06]}  Rb1+ {[%clk 0:00:02]} 41. Kg2 {[%clk 0:00:06]}  Be5 {[%clk 0:00:03]} 42. Rc8 {[%clk 0:00:05]}  Rb2 {[%clk 0:00:03]} 43. Kf3 {[%clk 0:00:05]}  Rb3+ {[%clk 0:00:03]} 44. Kg2 {[%clk 0:00:05]}  Rg3+ {[%clk 0:00:03]} 45. Kf2 {[%clk 0:00:05]}  Rxh3 {[%clk 0:00:04]} 46. Rd8 {[%clk 0:00:05]}  Rh2+ {[%clk 0:00:02]} 47. Kf3 {[%clk 0:00:05]}  Rh4 {[%clk 0:00:02]} 48. d6 {[%clk 0:00:04]}  Rd4 {[%clk 0:00:03]} 49. d7 {[%clk 0:00:04]}  Bf6 {[%clk 0:00:03]} 50. Re8 {[%clk 0:00:04]}  Rxd7 {[%clk 0:00:04]} 51. Bc4 {[%clk 0:00:04]}  Re7 {[%clk 0:00:04]} 52. Rc8 {[%clk 0:00:04]}  h5 {[%clk 0:00:03]} 53. Kg3 {[%clk 0:00:05]}  Be5+ {[%clk 0:00:04]} 54. Kh3 {[%clk 0:00:05]}  Rc7 {[%clk 0:00:04]} 55. Rxc7 {[%clk 0:00:04]}  Bxc7 {[%clk 0:00:05]} 56. Kh4 {[%clk 0:00:05]}  Bd8+ {[%clk 0:00:06]} 57. Kh3 {[%clk 0:00:05]}  f5 {[%clk 0:00:06]} 58. Bd3 {[%clk 0:00:06]}  Kf6 {[%clk 0:00:07]} 59. Kg3 {[%clk 0:00:07]}  Bc7+ {[%clk 0:00:08]} 60. Kf3 {[%clk 0:00:07]}  g5 {[%clk 0:00:07]} 61. Kg2 {[%clk 0:00:08]}  g4 {[%clk 0:00:08]} 62. Bb5 {[%clk 0:00:07]}  Kg5 {[%clk 0:00:08]} 63. Bc6 {[%clk 0:00:07]}  h4 {[%clk 0:00:09]} 64. Bd5 {[%clk 0:00:07]}  f4 {[%clk 0:00:10]} 65. Kh1 {[%clk 0:00:08]}  h3 {[%clk 0:00:10]} 66. Kg1 {[%clk 0:00:08]}  f3 {[%clk 0:00:10]} 67. Kf2 {[%clk 0:00:08]}  Kf4 {[%clk 0:00:10]} 68. Be6 {[%clk 0:00:09]}  Bb6+ {[%clk 0:00:11]} 69. Kf1 {[%clk 0:00:08]}  h2 {[%clk 0:00:12]} 70. Ke1 {[%clk 0:00:09]}  Ke3 {[%clk 0:00:10]} 71. Kd1 {[%clk 0:00:08]}  g3 {[%clk 0:00:10]} 72. Bh3 {[%clk 0:00:07]}  Kf2 {[%clk 0:00:10]} 73. Bf1 {[%clk 0:00:08]}  Kxf1 {[%clk 0:00:10]} 74. Kd2 {[%clk 0:00:09]}  f2 {[%clk 0:00:11]} 75. Kd3 {[%clk 0:00:10]}  g2 {[%clk 0:00:12]} 76. Ke4 {[%clk 0:00:11]}  g1=Q {[%clk 0:00:10]} 77. Kf3 {[%clk 0:00:12]}  h1=Q+ {[%clk 0:00:09]} 78. Kf4 {[%clk 0:00:12]}  Ke2 {[%clk 0:00:09]} 79. Ke5 {[%clk 0:00:13]}  Be3 {[%clk 0:00:09]} 80. Kd6 {[%clk 0:00:14]}  Qe1 {[%clk 0:00:09]} 81. Ke5 {[%clk 0:00:14]}  f1=Q {[%clk 0:00:10]} 82. Ke6 {[%clk 0:00:14]}  Kd3 {[%clk 0:00:09]} 83. Ke5 {[%clk 0:00:15]}  Bc5# {[%clk 0:00:09]} 0-1

[Event "December 12 Early 2023"]
[Site "https://www.chess.com"]
[Date "2023.12.12"]
[Round "5"]
[White "Kotyk, Michael"]
[Black "Eden, James"]
[Result "1-0"]
[Board "95"]
[TimeControl "180+1"]
[WhiteFideId "16214501"]
[BlackFideId "666491"]
[WhiteElo "2464"]
[BlackElo "2621"]
[WhiteTeam "GER"]
[BlackTeam "FRA"]
[WhiteClock "0:00:20"]
[BlackClock "0:00:41"]

1. e4 {[%clk 0:03:00]}  c5 {[%clk 0:02:52]} 2. c3 {[%clk 0:02:59]}  Nf6 {[%clk 0:02:50]} 3. e5 {[%clk 0:02:59]}  Nd5 {[%clk 0:02:49]} 4. Bc4 {[%clk 0:03:00]}  Nb6 {[%clk 0:02:48]} 5. Bb3 {[%clk 0:03:01]}  c4 {[%clk 0:02:46]} 6. Bc2 {[%clk 0:03:00]}  Nc6 {[%clk 0:02:45]} 7. Nf3 {[%clk 0:03:00]}  g6 {[%clk 0:02:44]} 8. d4 {[%clk 0:02:55]}  cxd3 {[%clk 0:02:43]} 9. Qxd3 {[%clk 0:02:55]}  Bg7 {[%clk 0:02:43]} 10. Bf4 {[%clk 0:02:53]}  O-O {[%clk 0:02:38]} 11. O-O {[%clk 0:02:53]}  d5 {[%clk 0:02:23]} 12. exd6 {[%clk 0:02:52]}  e5 {[%clk 0:02:24]} 13. Bg5 {[%clk 0:02:40]}  f6 {[%clk 0:02:23]} 14. Be3 {[%clk 0:02:37]}  Bf5 {[%clk 0:02:22]} 15. Bb3+ {[%clk 0:02:35]}  Kh8 {[%clk 0:02:22]} 16. Qd1 {[%clk 0:02:23]}  Na5 {[%clk 0:02:21]} 17. Na3 {[%clk 0:02:18]}  Nxb3 {[%clk 0:02:20]} 18. axb3 {[%clk 0:02:19]}  Qd7 {[%clk 0:02:14]} 19. Nc4 {[%clk 0:01:56]}  Nxc4 {[%clk 0:02:12]} 20. bxc4 {[%clk 0:01:55]}  b6 {[%clk 0:02:09]} 21. c5 {[%clk 0:01:53]}  bxc5 {[%clk 0:02:09]} 22. Bxc5 {[%clk 0:01:54]}  Rfc8 {[%clk 0:02:09]} 23. b4 {[%clk 0:01:53]}  Bf8 {[%clk 0:02:07]} 24. Ra6 {[%clk 0:01:22]}  Rc6 {[%clk 0:02:01]} 25. Qa1 {[%clk 0:01:09]}  Bd3 {[%clk 0:01:46]} 26. Rxc6 {[%clk 0:01:08]}  Qxc6 {[%clk 0:01:46]} 27. Rd1 {[%clk 0:01:08]}  e4 {[%clk 0:01:44]} 28. Nd4 {[%clk 0:01:07]}  Qd5 {[%clk 0:01:42]} 29. c4 {[%clk 0:00:35]}  Qxc4 {[%clk 0:01:35]} 30. Nc6 {[%clk 0:00:23]}  Qe6 {[%clk 0:01:29]} 31. Qd4 {[%clk 0:00:18]}  Bb5 {[%clk 0:01:15]} 32. d7 {[%clk 0:00:18]}  Bxc5 {[%clk 0:01:01]} 33. d8=Q+ {[%clk 0:00:18]}  Rxd8 {[%clk 0:01:01]} 34. Qxd8+ {[%clk 0:00:19]}  Kg7 {[%clk 0:01:02]} 35. bxc5 {[%clk 0:00:19]}  Bxc6 {[%clk 0:01:01]} 36. Qc7+ {[%clk 0:00:20]}  Kh6 {[%clk 0:01:01]} 37. Qf4+ {[%clk 0:00:20]}  g5 {[%clk 0:01:00]} 38. Qd6 {[%clk 0:00:20]}  Qxd6 {[%clk 0:00:41]} 39. Rxd6 {[%clk 0:00:20]} 1-0

[Event "December 12 Early 2023"]
[Site "https://www.chess.com"]
[Date "2023.12.12"]
[Round "5"]
[White "Manukyan, Sargis A."]
[Black "Lopez Idarraga, Daniel Eduardo"]
[Result "1-0"]
[Board "96"]
[TimeControl "180+1"]
[WhiteFideId "13303970"]
[BlackFideId "4405501"]
[WhiteElo "2619"]
[BlackElo "2460"]
[WhiteTeam "ARM"]
[BlackTeam "COL"]
[WhiteClock "0:02:44"]
[BlackClock "0:02:12"]

1. d4 {[%clk 0:02:57]}  d5 {[%clk 0:02:59]} 2. c4 {[%clk 0:02:55]}  c6 {[%clk 0:02:59]} 3. Nc3 {[%clk 0:02:53]}  Nf6 {[%clk 0:03:00]} 4. e3 {[%clk 0:02:53]}  Bf5 {[%clk 0:02:59]} 5. cxd5 {[%clk 0:02:53]}  cxd5 {[%clk 0:02:59]} 6. Qb3 {[%clk 0:02:53]}  Qd7 {[%clk 0:02:55]} 7. Bb5 {[%clk 0:02:52]}  Nc6 {[%clk 0:02:54]} 8. Nf3 {[%clk 0:02:53]}  e6 {[%clk 0:02:50]} 9. Ne5 {[%clk 0:02:53]}  Qc7 {[%clk 0:02:48]} 10. Qa4 {[%clk 0:02:53]}  Rc8 {[%clk 0:02:44]} 11. Qxa7 {[%clk 0:02:53]}  Bd6 {[%clk 0:02:42]} 12. Nxc6 {[%clk 0:02:53]}  bxc6 {[%clk 0:02:41]} 13. Qxc7 {[%clk 0:02:53]}  Rxc7 {[%clk 0:02:41]} 14. Be2 {[%clk 0:02:54]}  Ke7 {[%clk 0:02:37]} 15. f3 {[%clk 0:02:53]}  Rb8 {[%clk 0:02:36]} 16. g4 {[%clk 0:02:49]}  Bg6 {[%clk 0:02:35]} 17. g5 {[%clk 0:02:49]}  Nd7 {[%clk 0:02:32]} 18. Kf2 {[%clk 0:02:47]}  e5 {[%clk 0:02:29]} 19. dxe5 {[%clk 0:02:46]}  Nxe5 {[%clk 0:02:26]} 20. h4 {[%clk 0:02:45]}  Bd3 {[%clk 0:02:12]} 21. f4 {[%clk 0:02:44]} 1-0